bitfinex-derivatives/quotes_SOLF0:USTF0_20251122
["timestamp","ask_amount","ask_price","bid_price","bid_amount"]
[1763789798374,0.05281088,125.92,125.91,3.28]
[1763789799180,16.37879296,125.99,125.92,3.28]
[1763789799379,9.37734102,125.98,125.94,3.28]
[1763789799576,3.31,125.98,125.94,3.28]
[1763789799971,3.31,125.96,125.9,3.28]
[1763789800175,3.31,125.96,125.92,0.0579252]
[1763789800477,111.2162,125.98,125.92,0.0579252]
[1763789800478,3.31,125.95,125.92,0.0579252]
[1763789800981,3.31,125.94,125.92,0.0579252]
[1763789801380,10.4618,125.94,125.92,0.0579252]
[1763789801581,3.31,125.93,125.92,0.0579252]
[1763789802379,3.31,125.92,125.88,20.02]
[1763789803083,7.1527,125.93,125.89,3.28]
[1763789803484,0.059914,125.92,125.9,3.33112229]
[1763789805473,10.6460245,126.0,125.92,3.28]
[1763789805677,9.37585993,125.99,125.93,20.02]
[1763789805880,3.31,125.98,125.93,16.74]
[1763789806080,3.31,125.97,125.93,16.74]
[1763789806276,3.31,125.96,125.93,16.74]
[1763789806483,3.31,125.96,125.93,16.79439032]
[1763789806874,9.19086866,125.98,125.93,20.07439032]
[1763789807081,3.31,125.98,125.93,20.07439032]
[1763789807278,7.1485,126.0,125.95,7.1509]
[1763789807489,3.31,126.0,125.96,3.33513872]
[1763789808089,3.31,126.03,125.97,3.28]
[1763789808277,126.84995896,126.06,125.96,111.28223872]
[1763789808278,9.19130529,126.04,126.0,3.28]
[1763789808483,9.3606324,126.03,126.01,0.05613642]
[1763789808684,3.31,126.03,126.01,0.05613642]
[1763789809082,3.31,126.05,126.01,0.05613642]
[1763789809394,3.31,126.05,126.01,3.33613642]
[1763789810189,3.31,126.05,126.01,0.05613642]
[1763789810382,3.31,126.05,126.01,3.33613642]
[1763789811577,7.145,126.06,126.01,3.33613642]
[1763789811784,10.455,126.06,126.01,3.33613642]
[1763789812193,7.144,126.08,126.01,3.33613642]
[1763789812489,10.454,126.08,126.01,3.33613642]
[1763789813686,10.454,126.08,126.02,3.28]
[1763789813890,3.31,126.07,126.04,0.05200147]
[1763789814290,10.4544,126.07,126.04,0.05200147]
[1763789814480,7.1444,126.07,126.04,0.05200147]
[1763789814686,3.31,126.06,126.04,0.05200147]
[1763789815187,10.455,126.06,126.04,0.05200147]
[1763789815388,3.31,126.05,126.04,0.05200147]
[1763789815888,3.31,126.04,125.99,3.28]
[1763789816090,3.31,126.04,125.99,20.04]
[1763789816291,3.31,126.04,125.99,3.28]
[1763789816998,0.06066778,126.03,126.0,0.05342396]
[1763789817401,0.06066778,126.03,126.0,3.33342396]
[1763789817696,3.37066778,126.03,126.0,0.05342396]
[1763789820197,0.06066778,126.03,126.0,3.33342396]
[1763789820494,111.0964,126.12,126.0,3.33342396]
[1763789820495,3.31,126.1,126.02,3.28]
[1763789820696,3.31,126.1,126.04,3.28]
[1763789821093,3.31,126.14,126.07,3.28]
[1763789821294,118.36274447,126.17,126.09,3.34047113]
[1763789821295,3.31,126.17,126.09,3.34047113]
[1763789821497,7.1398,126.15,126.12,0.0582645]
[1763789821694,3.31,126.14,126.12,0.0582645]
[1763789822286,3.31,126.13,126.12,0.0582645]
[1763789822895,114.3765,126.15,126.12,0.0582645]
[1763789823099,3.31,126.14,126.06,16.76]
[1763789823400,10.4514,126.12,126.06,16.76]
[1763789824101,0.05056233,126.1,126.08,0.05823555]
[1763789825187,0.05056233,126.1,126.08,3.33823555]
[1763789826197,3.07,126.16,126.08,3.33823555]
[1763789826488,3.07,126.16,126.09,3.26]
[1763789827202,3.07,126.16,126.11,0.06004675]
[1763789827702,3.07,126.14,126.11,0.06004675]
[1763789828499,3.07,126.13,126.11,0.06004675]
[1763789828901,10.211,126.13,126.11,0.06004675]
[1763789829100,3.07,126.12,126.11,0.06004675]
[1763789829401,3.07,126.12,126.06,3.26]
[1763789829602,3.07,126.12,126.05,7.1451]
[1763789829799,3.07,126.1,126.04,16.76]
[1763789830102,3.07,126.1,126.04,20.02]
[1763789830303,3.07,126.1,126.04,3.26]
[1763789830492,3.12188344,126.08,126.06,0.05715298]
[1763789831001,0.05188344,126.08,126.06,0.05715298]
[1763789831207,0.05188344,126.08,126.06,3.31715298]
[1763789831402,0.05188344,126.08,126.06,0.05715298]
[1763789831603,0.05188344,126.08,126.06,3.31715298]
[1763789832306,3.12188344,126.08,126.06,0.05715298]
[1763789833500,3.07,126.07,126.06,0.05715298]
[1763789833702,3.07,126.07,126.0,16.76]
[1763789833909,3.07,126.07,125.99,3.26]
[1763789833910,3.07,126.05,125.99,3.26]
[1763789834099,3.07,126.05,125.98,16.76]
[1763789834300,3.07,126.02,125.98,16.76]
[1763789834799,0.05165248,126.01,125.99,0.06067457]
[1763789835194,3.12165248,126.01,125.99,0.06067457]
[1763789836001,3.07,125.99,125.92,3.26]
[1763789836907,3.12754492,125.97,125.94,0.05435562]
[1763789837308,114.35264492,125.97,125.94,0.05435562]
[1763789837611,3.07,125.95,125.94,0.05435562]
[1763789839701,3.12754492,125.97,125.94,0.05435562]
[1763789841111,0.05754492,125.97,125.94,3.31435562]
[1763789843608,0.05754492,125.97,125.94,10.46565562]
[1763789843805,0.05754492,125.97,125.95,3.26]
[1763789844909,0.05754492,125.97,125.94,0.05435562]
[1763789845108,0.05754492,125.97,125.94,3.31435562]
[1763789845699,3.12754492,125.97,125.94,3.31435562]
[1763789845904,3.12754492,125.97,125.94,0.05435562]
[1763789848614,0.05754492,125.97,125.94,3.31435562]
[1763789849112,114.35244492,125.97,125.94,0.05435562]
[1763789849316,3.07,125.96,125.87,20.04]
[1763789849616,10.2223,125.93,125.87,27.1952]
[1763789849815,3.07,125.93,125.87,27.1952]
[1763789850217,0.05673569,125.91,125.89,0.05774589]
[1763789850913,0.05673569,125.91,125.89,3.31774589]
[1763789851412,7.1502,125.97,125.9,3.26]
[1763789851715,10.2202,125.97,125.9,3.26]
[1763789852109,3.07,125.95,125.87,128.0857]
[1763789852315,0.05975933,125.92,125.9,0.05561337]
[1763789852517,0.05975933,125.92,125.9,3.31561337]
[1763789853714,3.12975933,125.92,125.9,0.05561337]
[1763789859027,3.22,125.91,125.87,16.78]
[1763789859211,3.22,125.9,125.8,3.24]
[1763789859409,3.22,125.9,125.81,20.02]
[1763789860013,3.22,125.87,125.82,3.24]
[1763789860320,3.22,125.87,125.84,0.05162781]
[1763789860321,3.27160291,125.87,125.84,0.05162781]
[1763789860520,3.22,125.86,125.84,0.05162781]
[1763789860822,3.22,125.86,125.79,3.24]
[1763789861820,0.05621946,125.84,125.82,3.24]
[1763789862024,0.06088073,125.84,125.82,3.29548511]
[1763789862919,3.22,125.89,125.84,3.24]
[1763789863918,0.054922,125.88,125.85,0.05094863]
[1763789864119,3.274922,125.88,125.85,0.05094863]
[1763789864318,0.054922,125.88,125.85,3.29094863]
[1763789865723,3.22,125.87,125.85,0.05094863]
[1763789866128,10.3757,125.87,125.85,0.05094863]
[1763789866430,3.22,125.86,125.85,0.05094863]
[1763789866626,3.22,125.86,125.81,20.04]
[1763789866627,3.22,125.84,125.75,3.24]
[1763789866927,3.22,125.82,125.76,3.24]
[1763789867130,3.22,125.82,125.76,10.4016]
[1763789867727,0.05928383,125.8,125.78,3.2915649]
[1763789869424,3.22,125.85,125.78,3.2915649]
[1763789870035,3.22,125.85,125.8,10.3994]
[1763789870227,3.22,125.85,125.8,27.1994]
[1763789870422,0.05464431,125.84,125.81,0.05972434]
[1763789870824,3.27464431,125.84,125.81,0.05972434]
[1763789871226,0.05464431,125.84,125.81,3.29972434]
[1763789871844,0.05464431,125.84,125.81,114.65962434]
[1763789872134,0.05464431,125.84,125.82,3.24]
[1763789872925,0.05464431,125.84,125.83,3.24]
[1763789874942,0.05464431,125.84,125.81,3.29972434]
[1763789875140,0.05464431,125.84,125.81,20.09972434]
[1763789876243,0.05464431,125.84,125.81,27.25842434]
[1763789876838,0.05464431,125.84,125.82,3.24]
[1763789878641,0.05464431,125.84,125.82,10.3981]
[1763789878839,0.05464431,125.84,125.83,3.24]
[1763789880239,0.05464431,125.84,125.81,20.09972434]
[1763789880541,3.27464431,125.84,125.81,16.83972434]
[1763789880735,3.22,125.83,125.81,16.83972434]
[1763789880943,3.27464431,125.84,125.81,3.29972434]
[1763789881141,0.05464431,125.84,125.81,3.29972434]
[1763789881444,3.27464431,125.84,125.81,0.05972434]
[1763789882344,0.05464431,125.84,125.81,3.29972434]
[1763789883433,3.27464431,125.84,125.81,0.05972434]
[1763789884132,3.22,125.82,125.77,3.24]
[1763789884734,10.3791,125.81,125.77,3.24]
[1763789884930,3.22,125.8,125.77,3.24]
[1763789885331,3.27501169,125.8,125.77,3.29302322]
[1763789886038,0.05501169,125.8,125.77,3.29302322]
[1763789887141,3.11501169,125.8,125.77,3.29302322]
[1763789887342,3.11501169,125.8,125.77,0.05302322]
[1763789888247,10.2203,125.79,125.77,0.05302322]
[1763789889252,3.06,125.79,125.77,0.05302322]
[1763789890044,3.2,125.77,125.71,3.12]
[1763789890244,3.2,125.77,125.71,19.92]
[1763789891151,0.05725955,125.75,125.73,0.06005775]
[1763789892249,3.25725955,125.75,125.73,0.06005775]
[1763789892554,3.2,125.74,125.69,16.8]
[1763789892753,10.3635,125.73,125.69,19.92]
[1763789893445,0.0606825,125.72,125.7,0.05820394]
[1763789894553,0.0606825,125.72,125.7,3.17820394]
[1763789895257,3.2606825,125.72,125.7,0.05820394]
[1763789896165,10.4249825,125.72,125.7,0.05820394]
[1763789896462,3.2,125.71,125.65,3.12]
[1763789896658,3.2,125.74,125.67,3.12]
[1763789897456,0.05416298,125.72,125.69,0.05488874]
[1763789898158,3.25416298,125.72,125.69,0.05488874]
[1763789898360,3.25416298,125.72,125.64,19.92]
[1763789898361,3.2,125.7,125.64,3.12]
[1763789898748,111.4536,125.71,125.61,98.48]
[1763789898749,3.2,125.68,125.61,98.48]
[1763789898958,3.2,125.68,125.61,19.92]
[1763789899358,0.05262269,125.66,125.63,0.06035411]
[1763789899562,3.25262269,125.66,125.63,0.06035411]
[1763789900763,0.05262269,125.66,125.63,3.18035411]
[1763789902460,3.25262269,125.66,125.63,0.06035411]
[1763789903159,10.42042269,125.66,125.63,0.06035411]
[1763789903469,3.2,125.65,125.63,0.06035411]
[1763789903764,3.2,125.63,125.57,3.12]
[1763789904551,0.05017585,125.61,125.6,3.12]
[1763789904761,0.06069831,125.62,125.6,3.12]
[1763789904962,0.06069831,125.62,125.6,3.17420681]
[1763789905157,3.26069831,125.62,125.6,0.05420681]
[1763789905551,3.26069831,125.62,125.54,3.12]
[1763789905552,3.2,125.61,125.54,3.12]
[1763789905756,3.2,125.6,125.54,3.12]
[1763789906157,3.2,125.58,125.52,16.82]
[1763789906362,3.2,125.58,125.52,19.94]
[1763789906564,111.5351,125.62,125.54,111.6012]
[1763789906565,3.2,125.62,125.54,111.6012]
[1763789906764,3.2,125.62,125.55,10.2934]
[1763789906966,0.05111045,125.59,125.57,3.17762193]
[1763789908065,0.05111045,125.59,125.58,3.12]
[1763789908262,3.2,125.65,125.58,3.12]
[1763789908565,3.2,125.65,125.58,19.94]
[1763789908769,3.2,125.64,125.58,19.94]
[1763789908968,5.93948036,125.66,125.59,3.12]
[1763789909267,5.93948036,125.66,125.61,0.05800366]
[1763789909268,0.05717516,125.64,125.61,0.05800366]
[1763789910262,0.05717516,125.64,125.61,3.17800366]
[1763789913566,0.05717516,125.64,125.63,3.12]
[1763789916581,0.05717516,125.64,125.62,16.82]
[1763789916763,0.05717516,125.64,125.62,20.12]
[1763789917069,0.05717516,125.64,125.63,3.3]
[1763789917368,3.2,125.69,125.64,10.4685]
[1763789918261,0.05079729,125.68,125.65,3.351749]
[1763789920170,3.08079729,125.68,125.65,3.351749]
[1763789920769,0.05079729,125.68,125.65,10.519649]
[1763789920973,0.05079729,125.68,125.66,3.3]
[1763789921774,0.05079729,125.68,125.66,20.12]
[1763789921974,3.08079729,125.68,125.66,16.82]
[1763789922678,3.03,125.67,125.66,16.82]
[1763789922871,3.03,125.67,125.65,0.051749]
[1763789924081,10.1972,125.67,125.65,0.051749]
[1763789924383,3.03,125.66,125.65,0.051749]
[1763789925072,0.05079729,125.68,125.65,3.351749]
[1763789925277,3.08079729,125.68,125.65,0.051749]
[1763789928481,10.24729729,125.68,125.65,0.051749]
[1763789929775,0.05079729,125.68,125.65,3.351749]
[1763789931184,3.08079729,125.68,125.65,3.351749]
[1763789931380,0.05079729,125.68,125.65,10.519649]
[1763789931590,0.05079729,125.68,125.65,3.351749]
[1763789931787,0.05079729,125.68,125.66,3.3]
[1763789931987,0.05079729,125.68,125.67,20.1]
[1763789933087,0.05079729,125.68,125.67,16.8]
[1763789934585,3.08079729,125.68,125.65,0.051749]
[1763789935688,3.03,125.67,125.65,0.051749]
[1763789936688,3.03,125.66,125.65,0.051749]
[1763789937381,3.08079729,125.68,125.65,0.051749]
[1763789937977,10.197,125.67,125.65,0.051749]
[1763789938177,3.03,125.66,125.65,0.051749]
[1763789946990,5.17144005,125.66,125.58,3.08]
[1763789947197,3.28,125.62,125.58,3.08]
[1763789948292,0.05857977,125.61,125.59,0.05735464]
[1763789949585,0.05857977,125.61,125.59,10.30885464]
[1763789950392,3.28,125.66,125.62,3.08]
[1763789951390,3.33083983,125.65,125.63,0.05758]
[1763789952394,3.33083983,125.65,125.63,3.13758]
[1763789952395,0.05083983,125.65,125.63,3.13758]
[1763789953700,0.05083983,125.65,125.63,10.30678]
[1763789954602,0.05083983,125.65,125.64,3.08]
[1763789955799,3.33083983,125.65,125.63,0.05758]
[1763789956605,3.28,125.64,125.63,0.05758]
[1763789958106,3.28,125.63,125.58,3.08]
[1763789958304,9.62891114,125.62,125.58,19.88]
[1763789958505,3.28,125.62,125.58,19.88]
[1763789959208,0.05820074,125.61,125.59,0.05314127]
[1763789960009,0.05820074,125.61,125.59,3.13314127]
[1763789960209,0.05820074,125.61,125.59,10.30454127]
[1763789960410,0.05820074,125.61,125.6,3.08]
[1763789960711,0.05820074,125.61,125.59,3.13314127]
[1763789963316,0.05820074,125.61,125.59,10.30454127]
[1763789963504,0.05820074,125.61,125.6,3.08]
[1763789971321,3.28,125.67,125.63,3.08]
[1763789971914,10.4476,125.66,125.63,3.08]
[1763789972109,3.28,125.66,125.63,3.08]
[1763789972315,3.33800576,125.66,125.63,3.13810384]
[1763789972612,3.33800576,125.66,125.63,19.93810384]
[1763789972816,0.05800576,125.66,125.64,10.2485]
[1763789973009,0.05800576,125.66,125.65,3.08]
[1763789974817,0.05800576,125.66,125.64,3.08]
[1763789977114,3.14800576,125.66,125.63,0.05810384]
[1763789977716,3.14800576,125.66,125.63,3.36810384]
[1763789980025,3.14800576,125.66,125.63,0.05810384]
[1763789981430,0.05800576,125.66,125.63,3.36810384]
[1763789984526,3.14800576,125.66,125.63,3.36810384]
[1763789984723,3.14800576,125.66,125.63,20.16810384]
[1763789985421,3.14800576,125.66,125.64,3.31]
[1763789985623,0.05800576,125.66,125.64,3.31]
[1763789985824,3.14800576,125.66,125.64,3.31]
[1763789988835,0.05800576,125.66,125.64,3.31]
[1763789992235,3.14800576,125.66,125.63,16.85810384]
[1763789992442,3.14800576,125.66,125.63,0.05810384]
[1763789992938,3.14800576,125.66,125.63,3.36810384]
[1763789993443,3.09,125.65,125.63,0.05810384]
[1763789994038,3.09,125.64,125.63,0.05810384]
[1763789995441,10.2583,125.65,125.63,0.05810384]
[1763789996730,3.09,125.64,125.63,0.05810384]
[1763789999043,3.14800576,125.66,125.63,3.36810384]
[1763789999345,3.14800576,125.66,125.63,0.05810384]
[1763789999844,10.31560576,125.66,125.63,0.05810384]
[1763790000045,3.14800576,125.66,125.63,0.05810384]
[1763790000745,3.09,125.64,125.63,0.05810384]
[1763790001045,3.09,125.64,125.59,3.31]
[1763790001946,3.09,125.62,125.6,0.05016287]
[1763790002336,114.624,125.62,125.55,3.31]
[1763790002645,114.624,125.62,125.51,111.6214]
[1763790002646,3.09,125.58,125.52,3.31]
[1763790003332,0.05519961,125.56,125.54,0.05688757]
[1763790003536,0.05519961,125.56,125.54,3.36688757]
[1763790004135,0.05519961,125.56,125.55,3.31]
[1763790004947,0.05519961,125.56,125.54,3.36688757]
[1763790005148,0.05519961,125.56,125.54,20.16688757]
[1763790006039,3.36519961,125.56,125.54,0.05688757]
[1763790006645,3.36519961,125.56,125.49,3.32]
[1763790006646,114.95419961,125.56,125.49,3.32]
[1763790006853,3.31,125.55,125.49,3.32]
[1763790007242,10.484,125.55,125.49,3.32]
[1763790007640,3.31,125.52,125.51,0.05448152]
[1763790008240,0.05557312,125.53,125.51,0.05448152]
[1763790008446,0.05557312,125.53,125.51,3.37448152]
[1763790010749,0.05557312,125.53,125.51,20.17448152]
[1763790010950,3.31,125.59,125.53,3.32]
[1763790011156,3.31,125.59,125.54,10.4943]
[1763790011350,3.31,125.59,125.55,3.32]
[1763790012054,3.36010241,125.58,125.56,0.05921356]
[1763790012448,0.05010241,125.58,125.56,3.37921356]
[1763790015749,0.05010241,125.58,125.56,10.55221356]
[1763790015953,0.05010241,125.58,125.57,3.32]
[1763790017855,0.05010241,125.58,125.56,0.05921356]
[1763790018060,0.05010241,125.58,125.56,3.37921356]
[1763790020362,0.05010241,125.58,125.56,20.17921356]
[1763790021061,0.05010241,125.58,125.57,3.32]
[1763790023755,5.45505338,125.67,125.59,3.32]
[1763790023951,5.45505338,125.67,125.61,3.32]
[1763790024564,12.62205338,125.67,125.61,3.32]
[1763790024763,0.0594438,125.65,125.63,3.37627054]
[1763790028258,0.0594438,125.65,125.63,10.54537054]
[1763790028454,3.31,125.71,125.65,3.32]
[1763790029458,3.37003065,125.69,125.67,0.05936602]
[1763790031266,3.37003065,125.69,125.62,3.32]
[1763790031267,3.31,125.67,125.62,3.32]
[1763790032160,3.31,125.67,125.63,0.05251065]
[1763790032468,3.36813002,125.66,125.63,0.05251065]
[1763790033166,3.36813002,125.66,125.63,3.37251065]
[1763790033364,0.05813002,125.66,125.63,3.37251065]
[1763790034261,3.36813002,125.66,125.63,3.37251065]
[1763790034569,3.31,125.65,125.63,0.05251065]
[1763790034767,2.2031834,125.66,125.63,0.05251065]
[1763790034768,5.45505338,125.64,125.63,0.05251065]
[1763790035066,3.31,125.63,125.59,20.1]
[1763790035270,3.31,125.63,125.57,3.32]
[1763790035665,3.33,125.61,125.57,3.32]
[1763790036163,0.0576046,125.6,125.58,3.28614634]
[1763790036359,3.3876046,125.6,125.58,0.05614634]
[1763790036565,5.53265798,125.6,125.58,0.05614634]
[1763790036766,3.03,125.59,125.51,3.29]
[1763790036962,5.17505338,125.58,125.52,3.29]
[1763790037162,5.17505338,125.56,125.49,3.29]
[1763790037363,5.17505338,125.56,125.5,20.07]
[1763790037668,3.03,125.53,125.52,0.0577804]
[1763790038359,3.03,125.53,125.47,115.59]
[1763790038564,3.03,125.51,125.45,3.29]
[1763790039463,0.05292679,125.49,125.48,3.29]
[1763790039671,0.05826836,125.5,125.48,3.29]
[1763790039869,0.05826836,125.5,125.48,3.34036861]
[1763790040369,3.08826836,125.5,125.48,0.05036861]
[1763790041667,0.05826836,125.5,125.48,3.34036861]
[1763790042068,3.03,125.56,125.48,3.34036861]
[1763790042363,3.03,125.56,125.48,3.29]
[1763790043065,0.05393561,125.53,125.51,3.34376079]
[1763790043272,0.05277863,125.53,125.51,3.3492237]
[1763790044469,0.05277863,125.53,125.51,122.1528237]
[1763790044664,3.03,125.58,125.52,3.29]
[1763790045572,0.06091234,125.56,125.54,3.35113194]
[1763790046975,0.06091234,125.56,125.54,10.52503194]
[1763790047177,0.06091234,125.56,125.55,3.29]
[1763790048774,3.03,125.61,125.55,3.29]
[1763790048971,3.03,125.63,125.56,3.29]
[1763790049569,0.05220722,125.61,125.58,3.34256745]
[1763790050075,3.08220722,125.61,125.58,0.05256745]
[1763790051571,10.25280722,125.61,125.58,0.05256745]
[1763790051778,3.03,125.6,125.58,0.05256745]
[1763790051972,3.08220722,125.61,125.58,0.05256745]
[1763790052674,10.25280722,125.61,125.58,0.05256745]
[1763790053272,3.03,125.6,125.58,0.05256745]
[1763790055667,10.2012,125.6,125.58,0.05256745]
[1763790055870,3.03,125.59,125.52,3.29]
[1763790056064,3.03,125.59,125.52,20.09]
[1763790056373,3.03,125.57,125.52,20.09]
[1763790056878,3.08684002,125.56,125.53,0.05079082]
[1763790057080,3.08684002,125.56,125.53,3.34079082]
[1763790058280,3.08684002,125.56,125.53,0.05079082]
[1763790060269,0.05684002,125.56,125.53,3.34079082]
[1763790060674,3.08684002,125.56,125.53,0.05079082]
[1763790063077,3.08684002,125.56,125.53,3.34079082]
[1763790063276,0.05684002,125.56,125.53,3.34079082]
[1763790063981,0.05684002,125.56,125.53,10.51559082]
[1763790064280,0.05684002,125.56,125.53,3.34079082]
[1763790064782,0.05684002,125.56,125.55,3.29]
[1763790065483,3.29,125.62,125.57,3.29]
[1763790065685,3.29,125.6,125.53,3.21]
[1763790065876,3.29,125.6,125.54,7.1742]
[1763790066278,0.05760778,125.58,125.56,0.05777948]
[1763790066574,3.34760778,125.58,125.56,0.05777948]
[1763790068281,0.05760778,125.58,125.56,3.26777948]
[1763790068473,0.05760778,125.58,125.56,0.05777948]
[1763790068474,3.34760778,125.58,125.56,0.05777948]
[1763790068681,3.29,125.57,125.5,3.21]
[1763790069584,0.05827018,125.55,125.52,0.05894235]
[1763790069887,3.34827018,125.55,125.52,0.05894235]
[1763790070087,3.29,125.53,125.52,0.05894235]
[1763790070284,3.29,125.53,125.48,16.8]
[1763790071486,3.29,125.53,125.48,20.01]
[1763790071688,3.29,125.51,125.49,0.05675193]
[1763790072486,10.4662,125.51,125.49,0.05675193]
[1763790073476,10.4669,125.5,125.45,3.21]
[1763790073679,3.29,125.49,125.45,3.21]
[1763790073980,3.29,125.49,125.43,3.21]
[1763790074689,0.0523649,125.47,125.45,0.05878062]
[1763790074882,0.0523649,125.47,125.45,3.26878062]
[1763790077490,0.0523649,125.47,125.46,3.21]
[1763790077684,0.0523649,125.47,125.45,0.05878062]
[1763790077882,3.3423649,125.47,125.45,0.05878062]
[1763790082597,10.5208649,125.47,125.45,0.05878062]
[1763790082886,3.29,125.46,125.45,0.05878062]
[1763790085291,0.0523649,125.47,125.45,0.05878062]
[1763790085482,3.3423649,125.47,125.45,0.05878062]
[1763790086890,10.5209649,125.47,125.45,0.05878062]
[1763790087096,3.29,125.46,125.45,0.05878062]
[1763790091198,3.29,125.43,125.39,3.21]
[1763790091793,10.4707,125.43,125.39,3.21]
[1763790092102,0.06090154,125.42,125.39,3.21]
[1763790092595,0.06090154,125.42,125.39,10.3928]
[1763790092797,0.06090154,125.42,125.4,3.21]
[1763790092992,3.29,125.49,125.4,3.21]
[1763790093395,3.29,125.49,125.43,3.21]
[1763790093699,111.6262,125.52,125.43,3.21]
[1763790093700,3.29,125.52,125.43,3.21]
[1763790093905,3.29,125.52,125.44,3.21]
[1763790094200,0.0604703,125.49,125.47,3.21]
[1763790095294,3.3504703,125.49,125.46,16.85285913]
[1763790095499,0.0604703,125.49,125.46,19.88285913]
[1763790095894,0.0604703,125.49,125.47,3.03]
[1763790097294,3.2504703,125.49,125.46,16.85285913]
[1763790097600,3.2504703,125.49,125.46,0.05285913]
[1763790098001,3.2504703,125.49,125.46,3.29285913]
[1763790098396,3.2504703,125.49,125.46,0.05285913]
[1763790098596,3.2504703,125.49,125.46,3.29285913]
[1763790098793,0.0604703,125.49,125.46,3.29285913]
[1763790101095,0.0604703,125.49,125.47,3.24]
[1763790102304,0.0604703,125.49,125.48,3.24]
[1763790103000,0.0604703,125.49,125.48,20.04]
[1763790103307,0.0604703,125.49,125.46,20.09285913]
[1763790103508,0.0604703,125.49,125.47,3.24]
[1763790104710,3.2504703,125.49,125.46,20.09285913]
[1763790105009,0.0604703,125.49,125.46,20.09285913]
[1763790105303,0.0604703,125.49,125.47,3.24]
[1763790113111,10.3648,125.54,125.5,3.24]
[1763790113610,10.3637,125.56,125.51,3.24]
[1763790114120,0.06073293,125.55,125.53,3.24]
[1763790114511,0.06073293,125.55,125.52,3.2963455]
[1763790114913,3.25073293,125.55,125.52,0.0563455]
[1763790116314,3.19,125.53,125.52,0.0563455]
[1763790117218,0.06073293,125.55,125.52,3.2963455]
[1763790117418,3.25073293,125.55,125.52,3.2963455]
[1763790117818,3.19,125.53,125.52,0.0563455]
[1763790118020,7.1744,125.54,125.52,0.0563455]
[1763790118220,10.3644,125.54,125.52,0.0563455]
[1763790119714,3.19,125.53,125.52,0.0563455]
[1763790120223,3.19,125.52,125.46,3.24]
[1763790120423,3.19,125.52,125.47,3.24]
[1763790121219,3.19,125.52,125.48,0.05804951]
[1763790121419,0.05605226,125.51,125.49,3.24]
[1763790123722,7.23215226,125.51,125.48,3.29804951]
[1763790123920,10.42215226,125.51,125.48,3.29804951]
[1763790124121,7.23215226,125.51,125.48,3.29804951]
[1763790124730,0.05605226,125.51,125.48,3.29804951]
[1763790127029,3.35361373,125.59,125.5,3.3]
[1763790127226,3.31,125.58,125.5,3.3]
[1763790128135,0.05032852,125.55,125.53,3.36046372]
[1763790129829,3.31,125.6,125.54,3.3]
[1763790130028,7.1702,125.62,125.54,3.3]
[1763790130223,3.31,125.62,125.54,3.3]
[1763790130430,114.8442,125.62,125.54,3.3]
[1763790130634,3.31,125.6,125.54,3.3]
[1763790130832,0.06029035,125.58,125.56,0.05970225]
[1763790131027,0.06029035,125.58,125.56,3.35970225]
[1763790131531,23.51720263,125.69,125.65,3.3]
[1763790131736,114.7795,125.69,125.65,3.3]
[1763790131927,3.31,125.67,125.6,3.3]
[1763790132231,114.8236,125.64,125.58,16.84]
[1763790132431,3.31,125.63,125.57,3.3]
[1763790132631,3.31,125.6,125.59,0.0591149]
[1763790133033,3.31,125.6,125.54,20.14]
[1763790134040,0.0542803,125.58,125.56,0.05106953]
[1763790135241,3.3642803,125.58,125.51,3.3]
[1763790135432,3.31,125.57,125.51,3.3]
[1763790135831,3.31,125.55,125.51,3.3]
[1763790136040,3.31,125.55,125.48,20.14]
[1763790136439,0.05870668,125.53,125.5,0.05856626]
[1763790136845,3.36870668,125.53,125.5,0.05856626]
[1763790137345,0.05870668,125.53,125.5,3.35856626]